Cogmind - Beta 15 @@@ ROGUE MODE // 2025.05.26 @ 19:43:43 Player: Demo Result: Destroyed by G-73 Enforcer with Phase Gun Performance ------------- Evolutions (9) 4500 Regions Visited (23) 4600 Robots Destroyed (420) 2100 Value Destroyed (24722) 24722 Prototype IDs (60) 1200 Alien Tech Used (13) 2600 Bonus (25904) 25904 TOTAL SCORE: 65626 Bonus ------- Triggered Max Security 1000 High Alert Combat Kills 10130 Follower Combat Kills 2650 Entered Garrisons 600 Used RIF Installer 2000 MAIN.C Attacked Warlord 500 Warlord Defense Kills 280 Used Core Reset Matrix 3000 Hacked Protovariant 500 Scanned by Researcher 500 Met Sigix 2000 Activated Exoskeleton 3000 Friendly Fire -256 Cogmind --------- Core Integrity 0/1600 Matter 221/425 Energy 88/100 System Corruption 7% Temperature Cool (18) Movement Core (50) Location -1/Command Parts ------- > --- POWER (10) ------- (None) > --- PROPULSION (6) --- (None) > --- UTILITY (5) ------ Improved Dynamic Insulation System > --- WEAPON (4) ------- (None) > --- INVENTORY (5) ---- Experimental Heat Sink Advanced Energy Well (500) Advanced Sensor Array Peak State ------------ > --- POWER ------------ Quantum-Ion Reactor > --- PROPULSION ------- Treaded Biometal Exoskeleton > --- UTILITY ---------- Armored Scrap Engine Experimental Heat Sink Advanced Cooling System High-capacity Storage Unit Experimental Targeting Computer Advanced Transmission Jammer AEGIS Remote Shield Core Physics Calibrator > --- WEAPON ----------- Compact Tesla Bomb Launcher Hpw. Charged HERF Construct/C Hpw. EM HERF Construct/C > --- INVENTORY -------- Matter Drive Experimental Power Amplifier Experimental Heat Sink Advanced Energy Well Experimental Energy Well Energy Filter Advanced Weapon Cycler Thermal Barrier Experimental EM Shield Improved Dynamic Insulation System Power Bank Dimensional Node Initializer Transdimensional Reconstructor Transdimensional Reconstructor Core Reset Matrix Subatomic Replicator Molecular Deconstructor Sigix Containment Pod [Rating: 214] Favorites ----------- Power Constructs Engine Light Ion Engine Power Core Light Nuclear Core Reactor Constructs Propulsion Constructs Treads Constructs Wheel Subdweller Monowheel Hover Unit Combat Gravmag System Utility Armored Scrap Engine Device Armored Scrap Engine Storage Large Storage Unit Processor Advanced Signal Interpreter Hackware Relay Coupler [Grunt] Protection Layered Light Armor Plating Artifact Core Physics Calibrator Weapon Constructs Energy Gun Sigix Sheargun Energy Cannon Constructs Ballistic Gun Subdweller Machine Gun Ballistic Cannon Slug Cannon Launcher Compact Tesla Bomb Launcher Special Weapon Advanced Remote Datajack Impact Weapon Heavy Flail Slashing Weapon Power Sword Piercing Weapon Spear Build | -11 -10 -10 -10 -9 -7 -7 -7 -7 -6 -5 -5 -5 -5 -4 -4 -4 -3 -3 -2 -2 -2 -1 -1 ------- Run | Yrd Mat Min Sub Rec Fac Gar Fac Gar Fac Fac Upp Upp War Pro Fac Gar Res Tes Res Qua Sec Acc Com Slots Evolved 18 | . . . . . 6 . . . 2 2 . . . . 2 . 2 . 2 . . 2 . Power 9 | . . . . . . . . . 1 . . . . . . . . . 1 . . 7 . Propulsion 4 | . . . . . 4 . . . . . . . . . . . . . . . . . . Utility 3 | . . . . . 1 . . . 1 2 . . . . 1 . 1 . 1 . . -4 . Weapon 2 | . . . . . 1 . . . . . . . . . 1 . 1 . . . . -1 . Parts Attached 148 | 2 . . 20 8 8 2 . . 15 2 1 . . . 1 8 6 13 6 14 24 11 7 Power 13 | . . . 2 2 . . . . 3 . . . . . . . . . . . 3 2 1 Engine 5 | . . . 2 2 . . . . 1 . . . . . . . . . . . . . . Core 2 | . . . . . . . . . 1 . . . . . . . . . . . . . 1 Reactor 6 | . . . . . . . . . 1 . . . . . . . . . . . 3 2 . Propulsion 11 | 2 . . 4 3 1 . . . . 1 . . . . . . . . . . . . . Treads 2 | 2 . . . . . . . . . . . . . . . . . . . . . . . Leg . | . . . . . . . . . . . . . . . . . . . . . . . . Wheel 8 | . . . 4 3 1 . . . . . . . . . . . . . . . . . . Hover 1 | . . . . . . . . . . 1 . . . . . . . . . . . . . Flight . | . . . . . . . . . . . . . . . . . . . . . . . . Utility 86 | . . . 3 1 5 2 . . 5 1 1 . . . 1 8 4 12 5 13 17 5 3 Device 55 | . . . . 1 2 . . . 3 . 1 . . . 1 6 3 7 4 11 13 1 2 Storage 14 | . . . 3 . . 2 . . 1 . . . . . . . 1 2 1 . 1 3 . Processor 9 | . . . . . 1 . . . . 1 . . . . . . . 2 . 2 2 . 1 Hackware 5 | . . . . . 1 . . . 1 . . . . . . 2 . . . . . 1 . Protection 2 | . . . . . 1 . . . . . . . . . . . . 1 . . . . . Artifact 1 | . . . . . . . . . . . . . . . . . . . . . 1 . . Weapon 38 | . . . 11 2 2 . . . 7 . . . . . . . 2 1 1 1 4 4 3 Energy Gun 7 | . . . 2 . . . . . 2 . . . . . . . . . . . 2 1 . Energy Cannon 5 | . . . . . . . . . 1 . . . . . . . . . . . . 1 3 Ballistic Gun 9 | . . . 6 2 . . . . 1 . . . . . . . . . . . . . . Ballistic Cannon 4 | . . . 2 . . . . . . . . . . . . . . . . . . 2 . Launcher 3 | . . . 1 . 1 . . . . . . . . . . . . . . 1 . . . Special Weapon 6 | . . . . . . . . . 1 . . . . . . . 2 1 1 . 1 . . Impact Weapon 1 | . . . . . . . . . 1 . . . . . . . . . . . . . . Slashing Weapon 1 | . . . . . . . . . 1 . . . . . . . . . . . . . . Piercing Weapon 2 | . . . . . 1 . . . . . . . . . . . . . . . 1 . . Special Melee Weapon . | . . . . . . . . . . . . . . . . . . . . . . . . Unidentified Prototypes 29 | . . . . 1 1 . . . 2 . . . . . . . . 9 2 4 10 . . Corrupted Parts 1 | . . . . . 1 . . . . . . . . . . . . . . . . . . System Corruption 3 | . . . . . 3 . . . . . . . . . . . . . . . . . . Parts Lost 71 | . . . 4 12 6 . . 3 4 . . . . . 1 1 2 1 1 3 12 4 17 Power 14 | . . . 1 2 1 . . . 1 . . . . . . . . . . 1 4 1 3 Propulsion 11 | . . . 1 3 1 . . . . . . . . . . . . . . . . . 6 Utility 17 | . . . . 2 1 . . . 1 . . . . . 1 . 2 . . 1 4 2 3 Weapon 29 | . . . 2 5 3 . . 3 2 . . . . . . 1 . 1 1 1 4 1 5 Highest Loss Streak 17 | . . . 2 8 3 . . 1 1 . . . . . 1 1 2 1 1 2 4 4 17 To Critical Strikes 3 | . . . . . . . . . . . . . . . . . . . . . 2 . 1 Average Backups 14 | . . 3 20 27 4 7 10 11 12 12 13 13 13 13 12 13 13 13 17 16 16 14 11 Power 1 | . . . 3 4 . . . . . 1 1 1 1 1 1 1 1 . . . . . . Propulsion 1 | . . . 4 6 . . . . . . . . . . . . . . 1 . . . . Utility 8 | . . 1 5 6 3 6 9 10 10 10 10 10 10 10 9 10 9 10 13 12 10 8 7 Weapon 2 | . . 1 7 9 . . 1 . . 1 2 2 2 2 2 2 2 2 2 1 1 2 1 Tool/Special . | . . . . . . . . . . . . . . . . . . . . . . . . Unused Backups 69 | . . . 7 21 4 2 . . 5 2 1 1 . . . 7 2 3 6 5 1 . 2 Power 5 | . . . . 5 . . . . . . . . . . . . . . . . . . . Propulsion 6 | . . . . 3 . . . . . . . . . . . . . . 3 . . . . Utility 42 | . . . 2 6 4 2 . . 5 2 1 1 . . . 6 2 3 2 4 1 . 1 Weapon 13 | . . . 5 6 . . . . . . . . . . . . . . 1 1 . . . Tool/Special 3 | . . . . 1 . . . . . . . . . . . 1 . . . . . . 1 Average Slot Usage (%) 57 | . 28 28 85 80 42 43 46 41 49 52 52 52 52 52 56 57 60 60 59 56 57 28 38 Engine 3 | . . . 12 13 4 6 7 1 2 . . . . . . . . . . . . . . Reactor 2 | . . . . . . . . . 1 5 5 5 5 5 3 2 2 4 4 4 4 5 8 Treads 2 | . 28 28 9 . 1 1 . . 1 . . . . . . . . 2 4 . 1 . 2 Leg 1 | . . . . . 4 3 7 2 . . . . . . . 5 4 1 . 2 1 . . Wheel 4 | . . . 18 24 . . . . 1 3 . . . . . . . . . . . . . Device 11 | . . . . 2 11 7 7 7 8 17 17 17 17 17 21 19 14 18 20 20 21 8 7 Storage 6 | . . . 16 11 . 6 7 7 10 5 5 5 5 5 5 5 4 4 4 4 4 4 3 Processor 2 | . . . . . 1 . . . . 4 5 5 5 5 5 5 4 4 4 6 3 . 2 Energy Gun 3 | . . . . 9 3 2 7 1 9 1 . . . . 3 8 9 4 1 . 1 1 3 Energy Cannon 2 | . . . . . . . . . 2 8 5 5 5 5 5 1 . . 6 7 4 2 4 Ballistic Gun 4 | . . . 23 9 1 3 7 6 1 . . . . . . . . . . . . . . Ballistic Cannon 3 | . . . 3 8 3 1 . . . . 4 5 5 5 5 5 4 8 4 2 3 . . Peak Build Rating 214 | 2 2 2 19 35 58 70 52 56 76 98 95 96 96 96 108 125 145 152 175 205 214 137 167 Average Rating 92 | 1 2 2 14 21 43 50 51 49 65 90 94 95 96 96 106 117 131 144 162 190 198 108 138 On Entrance 80 | . 2 2 2 17 35 41 51 52 49 76 93 95 96 96 96 113 118 145 146 175 205 105 131 Naked Turns . | . . . . . . . . . . . . . . . . . . . . . . . . Heaviest Build 218 | . . . 214 218 16 35 33 39 60 62 62 62 62 62 75 85 91 99 145 139 157 97 101 Greatest Support 323 | 3 3 3 40 44 100 94 100 100 120 62 36 36 54 54 108 175 175 175 175 323 323 172 221 Greatest Overweight (x) 10 | . . . 10 10 2 . . . 1 1 1 1 1 1 2 . . . . . 1 1 . Average Overweight (x) . | . . . 4 5 . . . . . . 1 1 1 1 1 . . . . . . . . Largest Inventory Capacity 35 | 5 5 5 35 35 5 15 15 15 15 15 15 15 15 15 15 15 15 15 20 20 20 20 15 Average Capacity 17 | 5 5 5 27 29 5 14 15 15 15 15 15 15 15 15 15 15 15 15 19 20 20 18 14 Most Carried 35 | . 2 4 35 35 5 15 15 15 15 15 15 15 15 15 15 15 15 15 20 20 20 20 15 Average Carried 16 | . . 3 21 27 4 13 14 14 14 14 15 14 15 15 14 14 14 14 19 19 19 18 14 Final Capacity 35 | 5 5 5 35 5 5 15 15 15 15 15 15 15 15 15 15 15 15 15 20 20 20 15 5 Final Carried 35 | . 2 4 35 5 5 15 15 15 15 15 15 15 15 15 14 15 15 15 20 20 20 15 3 Scrap Engine Consumption 421 | . . . . 22 45 45 4 18 51 17 5 8 1 3 1 34 11 29 27 29 53 16 2 Constructs Created 20 | . . . . 4 2 3 . 1 3 . . . . . 1 1 . 1 1 . . 2 1 Constructs Modified 151 | . . . . 2 14 18 2 8 15 9 2 . . . 4 7 5 8 11 16 25 4 1 Class Distribution -------------------- 67% | Construct 15% | Hauler-Mutant 8% | Alien-Construct 4% | Mutant Dominant Class ---------------- Mutant | -10/Materials Mutant | -10/Mines Hauler-Mutant | -10/Subcaves Hauler-Mutant | -9/Recycling Construct | -7/Factory Construct | -7/Garrison Construct | -7/Factory Construct | -7/Garrison Construct | -6/Factory Construct | -5/Factory Construct | -5/Upper Caves Construct | -5/Upper Caves Construct | -5/Warlord Construct | -4/Proximity Caves Construct | -4/Factory Construct | -4/Garrison Construct | -3/Research Construct | -3/Testing Construct | -2/Research Construct | -2/Quarantine Alien-Construct | -2/Section 7 Alien-Mutant | -1/Access Alien-Gunner | -1/Command Resources | -11 -10 -10 -10 -9 -7 -7 -7 -7 -6 -5 -5 -5 -5 -4 -4 -4 -3 -3 -2 -2 -2 -1 -1 ----------- Run | Yrd Mat Min Sub Rec Fac Gar Fac Gar Fac Fac Upp Upp War Pro Fac Gar Res Tes Res Qua Sec Acc Com Matter Collected 9771 | . . 40 789 547 285 651 68 482 612 34 44 50 24 73 . 886 269 1194 286 611 2649 157 20 Remotely . | . . . . . . . . . . . . . . . . . . . . . . . . Salvage Created 23309 | . . . 517 542 884 704 153 388 1541 224 267 285 66 287 204 1844 938 1308 2413 1942 8401 386 15 Parts 895 | . . . 34 22 66 25 6 23 57 9 10 6 2 5 7 82 37 54 65 72 294 19 . Haulers Intercepted 12 | . . . . . 1 . . . 1 1 . . . . 1 . 1 2 2 1 1 1 . Recyclers Shooed 12 | . . . . 1 . . 1 . 4 . . . . . 2 . 1 . . . . 3 . Parts Field Recycled . | . . . . . . . . . . . . . . . . . . . . . . . . Retrieved Matter . | . . . . . . . . . . . . . . . . . . . . . . . . Parts Self-Destructed 32 | . . . 15 . . . . . . . 6 3 . 8 . . . . . . . . . Prevented 4 | . . . . . . . . . . . 1 1 . 2 . . . . . . . . . Kills | -11 -10 -10 -10 -9 -7 -7 -7 -7 -6 -5 -5 -5 -5 -4 -4 -4 -3 -3 -2 -2 -2 -1 -1 ------- Run | Yrd Mat Min Sub Rec Fac Gar Fac Gar Fac Fac Upp Upp War Pro Fac Gar Res Tes Res Qua Sec Acc Com Combat Hostiles Destroyed 330 | . . . 15 5 13 12 1 18 29 2 5 5 2 7 3 33 13 17 26 19 98 7 . Melee 1 | . . . . . . 1 . . . . . . . . . . . . . . . . . Guns 45 | . . . 11 3 2 4 . 7 6 . . . . . . 6 1 1 . . 4 . . Cannons 181 | . . . 4 2 4 4 . . 10 2 5 5 2 7 2 27 12 16 23 14 41 1 . AOE 50 | . . . . . 7 2 . 11 2 . . . . . 1 . . . . . 22 5 . Classes Destroyed 35 | . . . 5 4 7 2 . . 3 . 1 1 1 1 . 1 . 2 . 2 5 . . Worker 20 | . . . . . 4 . . . 4 3 . . . . . . . 2 3 . 2 2 . Builder 18 | . . . . . 4 . 1 . 2 . . . . . . . 1 2 3 2 3 . . Hauler 12 | . . . . . 1 . . . 1 1 . . . . 1 . 1 2 2 1 1 1 . Recycler 10 | . . . . 4 2 . 1 . 1 . . . . . . . 1 . . . 1 . . Mechanic 5 | . . . . . 2 . . . . . . . . . . . . . . . 3 . . Operator 6 | . . . . . 1 . . . 2 . . . . . . . . 1 . 1 1 . . Drone 2 | . . . . . . . . . . . . . . 1 . . . . . . . 1 . Turret 2 | . . . 2 . . . . . . . . . . . . . . . . . . . . Watcher 11 | . . . . . . . . . . . . . . . . . . 1 4 . 5 . 1 Swarmer 50 | . . . 2 . 4 3 . 9 4 . . . . . . . 9 4 4 . 5 6 . Cutter 8 | . . . . . . . . . 4 . . . . . . 3 . . 1 . . . . Saboteur 4 | . . . . . . . . . . . . . . . . . . . . . 4 . . Grunt 109 | . . . 1 . 2 7 . 5 16 2 . 1 . 6 2 12 . 6 10 5 34 . . Brawler 9 | . . . . . . 1 . . . . 2 1 . . . . . . . . 5 . . Duelist 8 | . . . . . . . . . 1 . 2 . . . . 1 . . . . 4 . . Protector 6 | . . . . . 1 . . . . . . . . . . . . . . 1 4 . . Researcher 5 | . . . . . . . . . . . . . . . . . . 1 . 2 2 . . Sentry 28 | . . . . 2 3 . 1 . 1 . 1 1 . . . 9 2 . 5 . 3 . . Demolisher 1 | . . . . . . . . . . . . . 1 . . . . . . . . . . Specialist 4 | . . . . . . . . . . . . . . . . . . . . . 4 . . Hunter 34 | . . . . . . 1 . . . . . . 1 . 1 4 2 4 2 2 17 . . Programmer 32 | . . . . . 3 . . 4 2 . . 2 . . . 3 . 4 2 5 7 . . Heavy 3 | . . . . . . . . . 1 . . . . . . . . . 1 . 1 . . Q-Series 2 | . . . . . . . . . . . . . . . . . . . . 2 . . . Behemoth 3 | . . . . . . . . . . . . . . . . 1 . . 1 . 1 . . S7 Guard 2 | . . . . . . . . . . . . . . . . . . . . . 2 . . Lightning 3 | . . . . . . . . . . . . . . . . . . . . 3 . . . Investigator 1 | . . . . . . . . . . . . . . . . . . . . . 1 . . Striker 3 | . . . . . . . . . . . . . . . . . . . . . 3 . . Executioner 2 | . . . . . . . . . . . . . . . . . . . . . 2 . . Alpha 7 2 | . . . . . . . . . . . . . . . . . . . . . 2 . . Fortress 1 | . . . . . . . . . . . . . . . . . . . . 1 . . . Artisan 1 | . . . 1 . . . . . . . . . . . . . . . . . . . . Subdweller 12 | . . . 12 . . . . . . . . . . . . . . . . . . . . Scientist 1 | . . . . 1 . . . . . . . . . . . . . . . . . . . Scrapper 3 | . . . . 3 . . . . . . . . . . . . . . . . . . . Decomposer 1 | . . . . . . . . . . . 1 . . . . . . . . . . . . Samaritan 2 | . . . . . . . . . . . . 2 . . . . . . . . . . . Tinkerer 1 | . . . . . . . . . . . 1 . . . . . . . . . . . . Best Kill Streak 16 | . . . 4 4 7 5 1 7 6 2 5 2 1 3 2 5 11 7 12 6 16 5 1 Combat Bots Only 16 | . . . 3 1 4 5 1 7 6 2 5 2 1 3 2 5 9 5 7 5 16 5 . Max Kills in Single Turn 5 | . . . 1 1 5 2 1 3 2 1 1 2 1 1 1 2 2 2 3 2 5 2 1 Gunslinging . | . . . . . . . . . . . . . . . . . . . . . . . . Exploded 4 | . . . . . 3 2 . 3 1 . . . . . 1 . . . . . 4 2 . Melee 1 | . . . . . . 1 . . . . . . . . . . . . . . . . . Uniques/NPCs Destroyed . | . . . . . . . . . . . . . . . . . . . . . . . . Combat | -11 -10 -10 -10 -9 -7 -7 -7 -7 -6 -5 -5 -5 -5 -4 -4 -4 -3 -3 -2 -2 -2 -1 -1 -------- Run | Yrd Mat Min Sub Rec Fac Gar Fac Gar Fac Fac Upp Upp War Pro Fac Gar Res Tes Res Qua Sec Acc Com Hostile Shots Fired 2999 | . . . 95 31 368 62 36 100 138 9 2 13 12 32 50 105 92 103 97 228 988 101 337 Missed 998 | . . . 37 6 134 24 17 37 48 5 . 1 5 10 16 36 29 49 43 75 293 33 100 Hits 2001 | . . . 58 25 234 38 19 63 90 4 2 12 7 22 34 69 63 54 54 153 695 68 237 Melee 26 | . . . . . . . . . 6 . . . . . . 2 . . . . 12 . 6 Projectile 1975 | . . . 58 25 234 38 19 63 84 4 2 12 7 22 34 67 63 54 54 153 683 68 231 AOE 4 | . . . . . . . . . . . . . 2 . . . . 1 1 . . . . Critical Strikes 93 | . . . 1 6 5 1 . 6 9 . . . . . . 3 1 4 2 9 31 2 13 Damage Taken 34534 | . . . 841 547 3134 624 149 1060 1829 78 25 136 196 459 626 1456 1217 867 878 3521 9276 1772 5843 Core 3869 | . . . 36 46 503 27 . 105 121 39 . 23 34 63 70 106 87 60 56 47 683 256 1507 Absorbed by Shields 6411 | . . . . . . . . . . . 24 112 . . . . . 94 593 1476 4015 . 97 Reduced by Siege Mode 49 | . . . . . . . . . . . . . . . . . . . . 49 . . . Ignored by Resistances 4144 | . . . . . . . . . . . . . . . . . . . . . 3859 83 202 Regen/Repaired (Parts) 15828 | . . . . . 1244 545 57 345 997 365 9 19 22 . 378 1130 679 551 483 2253 5785 890 76 Core Remaining (%) 67 | 100 . . . 67 . . . 9 85 . . . . 84 . 84 . 88 . . 24 . . Volleys Fired 1239 | . . . 66 60 53 68 13 108 116 11 24 18 16 15 15 155 46 89 49 65 219 31 2 Largest 4 | . . . 2 2 2 2 2 2 3 2 2 2 2 2 3 3 3 3 3 3 4 2 2 Hottest 483 | . . . 80 100 110 56 49 60 190 180 180 180 180 180 232 288 282 282 391 434 483 149 240 Shots Fired 1841 | . . . 125 108 97 107 26 110 144 12 26 20 25 23 25 235 76 161 73 82 331 32 3 Gun 776 | . . . 104 76 39 91 26 89 87 . . . . . 3 141 38 38 1 . 27 16 . Cannon 928 | . . . 18 32 52 14 . . 48 12 26 20 25 23 22 94 30 106 72 80 244 7 3 Launcher 89 | . . . 3 . 6 2 . 21 . . . . . . . . . . . 2 46 9 . Special 48 | . . . . . . . . . 9 . . . . . . . 8 17 . . 14 . . Kinetic 896 | . . . 122 93 91 43 13 76 3 . 24 8 16 15 12 154 49 108 16 . 52 1 . Thermal 505 | . . . . 15 2 . . . 66 11 . . . . 11 81 19 36 57 67 137 . 3 Explosive 27 | . . . . . 4 2 . 21 . . . . . . . . . . . . . . . Electromagnetic 323 | . . . 3 . . 62 13 13 66 1 2 12 9 8 2 . . . . 15 101 16 . Slashing 42 | . . . . . . . . . . . . . . . . . . . . . 27 15 . Robot Hit Streak 71 | . . . 11 12 16 16 3 71 19 14 10 12 8 16 12 30 7 29 21 26 21 3 . Robot Miss Streak 13 | . . . 5 6 3 2 4 5 7 4 5 5 4 3 4 7 13 3 6 4 6 5 . Penetration Max 1 | . . . . . . . . . . . . 1 . . . 1 1 1 1 . 1 . . Secondary Targets . | . . . . . . . . . . . . . . . . . . . . . . . . Shots Hit Robots 1114 | . . . 68 43 65 61 13 81 113 12 18 15 12 17 16 107 41 80 60 58 218 16 . Core Hits 1003 | . . . 30 14 53 27 3 99 74 15 19 18 9 27 16 126 42 60 65 52 239 15 . Critical Kills 3 | . . . . . . . . . . . . . . . . . . . 2 1 . . . Critical Parts Destroyed 8 | . . . . 3 1 . . . . . . . . . . . . 2 1 . 1 . . Critical Strikes 25 | . . . . 3 3 1 . . . . . . . . . . . 2 3 3 9 1 . Destroy 12 | . . . . 3 1 . . . . . . . . . . . . 2 3 1 2 . . Blast 2 | . . . . . 2 . . . . . . . . . . . . . . . . . . Corrupt 9 | . . . . . . . . . . . . . . . . . . . . 2 7 . . Sever 1 | . . . . . . . . . . . . . . . . . . . . . . 1 . Impale 1 | . . . . . . 1 . . . . . . . . . . . . . . . . . Melee Attacks 101 | . . . . . 17 79 . . 5 . . . . . . . . . . . . . . Impact 3 | . . . . . . . . . 3 . . . . . . . . . . . . . . Slashing 2 | . . . . . . . . . 2 . . . . . . . . . . . . . . Piercing 96 | . . . . . 17 79 . . . . . . . . . . . . . . . . . Sneak Attacks 5 | . . . . . 3 . . . 2 . . . . . . . . . . . . . . Combat Hostiles . | . . . . . . . . . . . . . . . . . . . . . . . . Follow-up Attacks . | . . . . . . . . . . . . . . . . . . . . . . . . Damage Inflicted 80732 | . . . 1455 1005 3114 1632 282 2419 3963 594 1036 1150 393 1457 830 7180 2078 3823 6951 8459 31656 1245 10 Guns 8449 | . . . 1011 748 450 846 282 737 1146 . . . . . 34 1490 407 359 28 . 620 291 . Cannons 53996 | . . . 222 257 917 187 . . 2038 594 1036 1150 393 1457 796 5690 1666 3152 6829 8391 18888 333 . Explosions 17080 | . . . 222 . 1535 311 . 1458 529 . . . . . . . . 258 . 68 12078 621 . Melee 712 | . . . . . 212 288 . . 212 . . . . . . . . . . . . . . Ramming 495 | . . . . . . . . 224 38 . . . . . . . 5 54 94 . 70 . 10 Kinetic 26845 | . . . 1436 838 2415 470 150 672 20 . 981 925 304 1250 619 6113 1918 3216 453 . 5044 21 . Thermal 32283 | . . . . 167 41 . . . 2818 559 . . . . 140 1067 155 295 6404 7685 12952 . . Explosive 3389 | . . . . . 446 311 . 1458 . . . . . . . . . 258 . . 916 . . Electromagnetic 16118 | . . . 19 . . 563 132 65 875 35 55 225 89 207 71 . . . . 774 12054 954 . Impact 123 | . . . . . . . . . 123 . . . . . . . . . . . . . . Slashing 979 | . . . . . . . . . 89 . . . . . . . . . . . 620 270 . Piercing 500 | . . . . . 212 288 . . . . . . . . . . . . . . . . . Highest Corruption 16 | . . . . . 7 7 7 15 . 1 1 2 2 2 . . . 3 1 11 16 . 7 Average Corruption 5 | . . . . . 4 7 7 10 . 1 1 1 2 2 . . . 1 1 7 10 . 4 Corruption Purged . | . . . . . . . . . . . . . . . . . . . . . . . . Corruption Blocked . | . . . . . . . . . . . . . . . . . . . . . . . . Effects 255 | . . . . . 26 43 5 35 . . 5 6 12 7 . . . 8 2 33 73 . . Message Errors 65 | . . . . . 7 9 3 12 . . 3 . 3 2 . . . 1 1 5 19 . . Matter Fused 55 | . . . . . 9 10 . 6 . . 2 1 3 . . . . 2 . 8 14 . . Heat Flow Errors 29 | . . . . . 2 8 . 4 . . . 1 1 1 . . . 1 . 5 6 . . Energy Discharges 27 | . . . . . 3 7 . 3 . . . . . 1 . . . 1 1 5 6 . . Parts Rejected 3 | . . . . . 1 . . . . . . . . . . . . . . . 2 . . Parts Fused 3 | . . . . . . 1 . . . . . . . . . . . . . 2 . . . Data Loss (minor) 33 | . . . . . 3 3 2 5 . . . 4 2 1 . . . 1 . 4 8 . . Data Loss (major) 14 | . . . . . 1 3 . . . . . . 2 . . . . 1 . 2 5 . . Misfires 3 | . . . . . . . . . . . . . . . . . . . . 1 2 . . Alerts 9 | . . . . . . 1 . 2 . . . . 1 1 . . . 1 . 1 2 . . Misdirections 2 | . . . . . . . . . . . . . . . . . . . . . 2 . . Weapon Failures 12 | . . . . . . 1 . 3 . . . . . 1 . . . . . . 7 . . Overload Shots 109 | . . . . . . . . . . . . . . . . . . . 36 48 25 . . Effects 9 | . . . . . . . . . . . . . . . . . . . 2 4 3 . . Energy Bleed 5 | . . . . . . . . . . . . . . . . . . . 1 2 2 . . Heat Surge 4 | . . . . . . . . . . . . . . . . . . . 1 2 1 . . Overflow Damage 3434 | . . . 15 8 163 70 . 102 201 . 38 59 . 1 . 66 . 36 226 549 1826 74 . Projectiles 2739 | . . . . 8 . 3 . . . . 38 59 . 1 . 66 . 36 208 536 1719 65 . Explosions 379 | . . . 15 . 111 . . 102 41 . . . . . . . . . . 13 88 9 . Melee 316 | . . . . . 52 67 . . 160 . . . . . . . . . 18 . 19 . . Knockbacks 181 | . . . 1 . 2 . . 7 . . 5 11 2 25 7 47 25 31 6 . 12 . . Impact 6 | . . . . . . . . 6 . . . . . . . . . . . . . . . Kinetic 158 | . . . 1 . 2 . . . . . 5 8 2 21 7 41 24 30 6 . 11 . . Secondary 17 | . . . . . . . . 1 . . . 3 . 4 . 6 1 1 . . 1 . . Self-Inflicted Damage 650 | . . . . . 123 . . 36 109 . . . . . . . . . . 134 248 . . Shots 17 | . . . . . 4 . . . 2 . . . . . . . . . . 1 10 . . Rammed 13 | . . . . . . . . 7 2 . . . . . . . . . 3 . 1 . . Targets Rammed 49 | . . . . . . . . 35 3 . . . . . . . 1 2 4 1 2 . 1 Kicked 32 | . . . . . . . . 28 . . . . . . . . 1 2 . 1 . . . Crushed 4 | . . . . . . . . . 1 . . . . . . . . . 1 . 1 . 1 Highest Temperature 457 | . . . . 241 205 224 18 274 356 173 310 208 282 271 311 386 329 272 294 457 456 307 182 Average Temperature 99 | . . . . 60 40 52 9 56 104 58 106 63 107 100 138 128 138 88 86 149 128 92 58 Received Heat Transfer 4295 | . . . 192 447 564 234 42 126 597 36 4 25 . 165 51 222 9 33 92 461 662 45 288 Effects 14 | . . . . . . . . . 2 . . . . . . 1 . . . 9 2 . . Shutdowns 3 | . . . . . . . . . . . . . . . . . . . . 3 . . . Energy Bleed 4 | . . . . . . . . . 1 . . . . . . . . . . 2 1 . . Interference 5 | . . . . . . . . . 1 . . . . . . . . . . 4 . . . Matter Decay 1 | . . . . . . . . . . . . . . . . 1 . . . . . . . Damage (minor) 1 | . . . . . . . . . . . . . . . . . . . . . 1 . . Siege Activations 1 | . . . . . . . . . . . . . . . . . . . . 1 . . . Total Turns 23 | . . . . . . . . . . . . . . . . . . . . 23 . . . Longest Duration 23 | . . . . . . . . . . . . . . . . . . . . 23 . . . Martial Activations . | . . . . . . . . . . . . . . . . . . . . . . . . Shielding Activations . | . . . . . . . . . . . . . . . . . . . . . . . . Robots Disrupted 2 | . . . . . . . . . . . . . . . . . . . . . 2 . . Combat Hostiles 1 | . . . . . . . . . . . . . . . . . . . . . 1 . . Robots Corrupted 42 | . . . . . . 2 1 . 1 . . 1 . . . . . . 1 4 31 1 . Combat Hostiles 36 | . . . . . . 1 1 . 1 . . . . . . . . . . 4 28 1 . Parts Fried 106 | . . . . . . 2 1 . 7 . . 2 . 1 . . . . 2 6 78 7 . Impact Corruptions 6 | . . . . . . . . . 4 . . . . . . . . . 1 . 1 . . Robots Melted 17 | . . . . . . . . . 11 . . . . . . . . . 3 1 2 . . Combat Hostiles 16 | . . . . . . . . . 10 . . . . . . . . . 3 1 2 . . Parts Melted 94 | . . . 1 1 . . . . 30 3 . . . . . . . . 35 13 11 . . Heat Transferred 29169 | . . . . 200 75 . . . 7395 1360 . . . . 37 407 . . 7844 5123 6728 . . Parts Sabotaged . | . . . . . . . . . . . . . . . . . . . . . . . . Parts Stolen . | . . . . . . . . . . . . . . . . . . . . . . . . Parts Stripped . | . . . . . . . . . . . . . . . . . . . . . . . . Power Chain Reactions 7 | . . . . . . . . . 2 . . . . . . . . . . . 5 . . Alert | -11 -10 -10 -10 -9 -7 -7 -7 -7 -6 -5 -5 -5 -5 -4 -4 -4 -3 -3 -2 -2 -2 -1 -1 ------- Run | Yrd Mat Min Sub Rec Fac Gar Fac Gar Fac Fac Upp Upp War Pro Fac Gar Res Tes Res Qua Sec Acc Com Maximum Alert Level 5 | . . . . . 3 4 3 3 3 2 . . . . 1 4 3 3 3 3 5 5 5 Low Security (%) 13 | 100 100 100 . 100 . . . . . . . . . . . . . . . . . . . Level 1 9 | . . . . . 44 . . . . 49 . . . . 100 14 . . 17 . 6 . . Level 2 32 | . . . . . 49 15 . 6 90 50 . . . . . 20 65 90 46 40 14 . . Level 3 23 | . . . . . 6 46 100 93 9 . . . . . . 34 34 9 36 59 6 . . Level 4 12 | . . . . . . 38 . . . . . . . . . 29 . . . . 37 . 52 Level 5 4 | . . . . . . . . . . . . . . . . . . . . . . 100 47 High Security . | . . . . . . . . . . . . . . . . . . . . . . . . Max Security 4 | . . . . . . . . . . . . . . . . . . . . . 34 . . Sterilizations 1 | . . . . . . . . . . . . . . . . . . . . . 1 . . Peak Influence 4031 | . . . . 101 847 1551 852 1095 953 464 . . . . 322 1232 854 727 942 1060 4031 2555 1629 Initial 2400 | . . . . 77 450 590 814 561 574 464 . . . . 300 223 693 477 405 529 419 2400 1624 Average 817 | . . . . 22 438 1065 821 924 531 404 . . . . 305 835 717 533 615 732 1666 2467 1586 Influence Increases 14105 | . . . 190 285 1397 1001 68 604 901 111 75 120 32 155 379 1059 345 722 889 1027 4241 401 103 Destroy 0b10 Robot/C 6265 | . . . 100 40 240 380 30 330 435 30 75 90 30 120 45 495 195 285 390 300 2535 120 . Destroy 0b10 Robot/NC 443 | . . . . 20 75 20 8 4 40 16 . . . 4 4 4 12 32 48 20 111 20 5 Destroy Leader 980 | . . . . . 62 40 16 32 90 2 . 16 . 24 2 40 42 46 108 50 396 12 2 Allied During Kill 581 | . . . . . . 30 14 30 . 4 . 14 2 7 . 28 . 6 . . 446 . . Trap Triggered on 0b10 92 | . . . . . . 60 . 16 . . . . . . . 8 . . . 8 . . . Successful Hack 362 | . . . . 61 44 16 . . 24 47 . . . . . 28 . 41 70 4 3 24 . Select Force Hacks 150 | . . . . 150 . . . . . . . . . . . . . . . . . . . Disable Machine 921 | . . . . . 45 75 . 12 84 12 . . . . 12 12 . 144 24 168 288 30 15 Anti-Garrison Action 654 | . . . . . 200 150 . 38 . . . . . . . 266 . . . . . . . Destroy Structure 1557 | . . . . 14 56 95 . 130 48 . . . . . 16 142 84 120 189 297 360 . 6 Advance Influence 750 | . . . . . 450 . . . . . . . . . 300 . . . . . . . . Partial Spotted 111 | . . . . . 30 . . . 12 . . . . . . 12 . . 12 . 15 30 . Lose Combat Pursuer 1239 | . . . 90 . 195 135 . 12 168 . . . . . . 24 12 48 48 180 87 165 75 Influence Decreases 12765 | . . . 28 447 554 293 817 311 1047 699 436 120 16 171 60 146 729 849 668 1223 1053 1863 1235 Entered New Map 7051 | . . . . 85 . 253 737 241 521 485 135 . . 16 . 96 539 371 316 413 327 1601 915 Time Decay 4554 | . . . 28 362 494 . 80 . 486 214 281 120 16 135 50 . 170 428 342 470 506 222 150 Lost Part 550 | . . . . . 60 . . 30 40 . . . . . 10 10 20 10 10 30 120 40 170 Lost Ally 310 | . . . . . . 40 . 40 . . 20 . . 20 . 40 . 40 . 10 100 . . Purge Threat 300 | . . . . . . . . . . . . . . . . . . . . 300 . . . Squads Dispatched 114 | . . . . . 10 . 1 . 11 2 . . . . 2 . 2 11 7 7 53 5 3 Investigation 13 | . . . . . 5 . . . 2 1 . . . . . . . 2 1 . 1 . 1 Extermination 17 | . . . . . 3 . . . 2 1 . . . . . . . 3 1 3 3 1 . Reinforcement 28 | . . . . . 2 . 1 . 5 . . . . . 1 . 2 5 2 2 6 2 . Assault 55 | . . . . . . . . . 2 . . . . . . . . 1 3 2 43 2 2 Garrison 1 | . . . . . . . . . . . . . . . 1 . . . . . . . . Intercept . | . . . . . . . . . . . . . . . . . . . . . . . . Searches Triggered . | . . . . . . . . . . . . . . . . . . . . . . . . Construction Impeded 6 | . . . . . . . 1 . 1 . . . . . . . 1 1 . . 1 1 . Haulers Reinforced 1 | . . . . . . . . . 1 . . . . . . . . . . . . . . Active Scanning Responses . | . . . . . . . . . . . . . . . . . . . . . . . . Cargo Convoy Interrupts 1 | . . . . . 1 . . . . . . . . . . . . . . . . . . Stealth | -11 -10 -10 -10 -9 -7 -7 -7 -7 -6 -5 -5 -5 -5 -4 -4 -4 -3 -3 -2 -2 -2 -1 -1 --------- Run | Yrd Mat Min Sub Rec Fac Gar Fac Gar Fac Fac Upp Upp War Pro Fac Gar Res Tes Res Qua Sec Acc Com Distress Signals 20 | . . . . . . . . . 3 1 . . . . . . 2 1 3 1 7 1 1 Communications Jammed 171 | . . . . . 74 . . . . . . . . . . . . . . 13 79 . 5 Distress Signals 160 | . . . . . 73 . . . . . . . . . . . . . . 6 76 . 5 Times Spotted 643 | . 1 . 22 4 49 27 2 23 52 4 5 6 4 8 7 33 19 36 38 46 209 22 26 Peak Tracking Total 34 | . 1 . 6 1 12 6 1 6 8 3 5 3 5 4 4 7 7 7 8 8 34 7 18 Tactical Retreats 52 | . . . 3 . 6 5 . 1 7 . . . . . . 1 1 3 3 6 6 8 2 Traps | -11 -10 -10 -10 -9 -7 -7 -7 -7 -6 -5 -5 -5 -5 -4 -4 -4 -3 -3 -2 -2 -2 -1 -1 ------- Run | Yrd Mat Min Sub Rec Fac Gar Fac Gar Fac Fac Upp Upp War Pro Fac Gar Res Tes Res Qua Sec Acc Com Traps Triggered 20 | . . . . . . 2 . 2 1 . . . . . . 5 2 1 4 2 . . 1 Indirectly . | . . . . . . . . . . . . . . . . . . . . . . . . Trap Hack Attempts . | . . . . . . . . . . . . . . . . . . . . . . . . Triggered . | . . . . . . . . . . . . . . . . . . . . . . . . Disarmed . | . . . . . . . . . . . . . . . . . . . . . . . . Reprogrammed 2 | . . . . . . . . . 1 . . . . . . . . . . 1 . . . Reused 10 | . . . . . . 6 . 2 . . . . . . . 1 . . . 1 . . . Traps Extracted . | . . . . . . . . . . . . . . . . . . . . . . . . Installed 13 | . . . . . . 10 . 2 . . . . . . . 1 . . . . . . . Triggered 10 | . . . . . . 6 . 2 . . . . . . . 1 . . . 1 . . . Most Traps Carried 10 | . . . . . . 10 4 4 2 2 2 2 1 1 1 1 . . . . . . . Machines | -11 -10 -10 -10 -9 -7 -7 -7 -7 -6 -5 -5 -5 -5 -4 -4 -4 -3 -3 -2 -2 -2 -1 -1 ---------- Run | Yrd Mat Min Sub Rec Fac Gar Fac Gar Fac Fac Upp Upp War Pro Fac Gar Res Tes Res Qua Sec Acc Com Machines Disabled 91 | . . . 7 . 3 6 . 1 7 1 2 1 . . 1 6 . 12 2 15 24 2 1 Max in Single Turn 4 | . . . 3 . 1 1 . 1 4 1 1 1 . . 1 1 . 3 1 1 2 1 1 Garrison Access 7 | . . . . . 1 . . . . . . . . . . . 1 . 3 1 1 . . Garrison Relay 6 | . . . . . . 1 . . . . . . . . . 5 . . . . . . . Machines Repaired . | . . . . . . . . . . . . . . . . . . . . . . . . Machines Dismantled . | . . . . . . . . . . . . . . . . . . . . . . . . Machines Sabotaged . | . . . . . . . . . . . . . . . . . . . . . . . . Overloaded Fab Kills . | . . . . . . . . . . . . . . . . . . . . . . . . Hacking | -11 -10 -10 -10 -9 -7 -7 -7 -7 -6 -5 -5 -5 -5 -4 -4 -4 -3 -3 -2 -2 -2 -1 -1 --------- Run | Yrd Mat Min Sub Rec Fac Gar Fac Gar Fac Fac Upp Upp War Pro Fac Gar Res Tes Res Qua Sec Acc Com Machines Accessed 86 | . . . 1 10 11 1 1 1 7 8 . 1 . . 1 4 1 7 10 13 4 3 2 Terminals 57 | . . . . 4 6 1 . 1 7 5 . . . . . 4 . 6 5 12 3 3 . Fabricators 3 | . . . . . 2 . . . . 1 . . . . . . . . . . . . . Repair Stations 1 | . . . . . . . . . . . . . . . . . . . . . . . 1 Recycling Units 8 | . . . . 5 . . . . . 1 . . . . . . . . 1 . . . 1 Scanalyzers 2 | . . . . . . . . . . . . . . . . . . 1 1 . . . . Garrison Access 12 | . . . . . 3 . 1 . . 1 . . . . 1 . 1 . 3 1 1 . . Total Hacks 194 | . . . 1 25 25 2 2 4 18 23 . 1 . . 3 10 2 19 18 26 7 5 3 Successful 82 | . . . 1 16 9 1 1 . 5 9 . 1 . . 1 3 1 8 9 11 3 1 2 Failed 112 | . . . . 9 16 1 1 4 13 14 . . . . 2 7 1 11 9 15 4 4 1 Catastrophic 33 | . . . . 3 4 1 1 . 3 4 . . . . . 2 1 4 4 3 1 2 . Database Lockouts . | . . . . . . . . . . . . . . . . . . . . . . . . Manual 62 | . . . . 13 5 1 1 . 2 14 . 1 . . 2 . 1 8 9 3 . . 2 Terminals 142 | . . . . 15 12 2 . 4 18 18 . . . . . 10 . 17 10 25 6 5 . Fabricators 6 | . . . . . 5 . . . . 1 . . . . . . . . . . . . . Repair Stations 1 | . . . . . . . . . . . . . . . . . . . . . . . 1 Recycling Units 14 | . . . . 8 . . . . . 2 . . . . . . . . 2 . . . 2 Scanalyzers 4 | . . . . . . . . . . . . . . . . . . 2 2 . . . . Garrison Access 23 | . . . . . 8 . 2 . . 2 . . . . 3 . 2 . 4 1 1 . . Terminal Hacks 45 | . . . 1 10 3 1 . . 5 3 . 1 . . . 3 . 5 2 8 2 1 . Record 3 | . . . . . . . . . . . . . . . . . . . 1 2 . . . Part Schematic 7 | . . . . 5 . . . . . . . . . . . . . 2 . . . . . Robot Analysis 2 | . . . . 2 . . . . . . . . . . . . . . . . . . . Prototype ID Bank 2 | . . . . 1 . . . . 1 . . . . . . . . . . . . . . Open Door 4 | . . . . . . . . . . . . 1 . . . 1 . 1 . 1 . . . Open DSF 1 | . . . . . . . . . 1 . . . . . . . . . . . . . . Level Access Points 1 | . . . . . . . . . . 1 . . . . . . . . . . . . . Branch Access Points 2 | . . . . . . . . . 1 . . . . . . . . . 1 . . . . Emergency Access Points 1 | . . . . . 1 . . . . . . . . . . . . . . . . . . Terminal Index 1 | . . . . . . . . . . . . . . . . . . . . . . 1 . Unreport Threat 2 | . . . . . . . . . . . . . . . . . . . . 2 . . . Locate Traps 3 | . . . . . 1 . . . 1 . . . . . . . . . . . 1 . . Reprogram Traps 3 | . . . . . . . . . 1 . . . . . . . . . . 2 . . . Assault Status 1 | . . . . . . . . . . . . . . . . . . . . 1 . . . Zone Layout 3 | . . . . . 1 . . . . 2 . . . . . . . . . . . . . Garrison Registry 1 | . . . . . . . . . . . . . . . . 1 . . . . . . . Patrol Navigation 1 | . . . . . . . . . . . . . . . . 1 . . . . . . . Security Stations 1 | . . . . . . 1 . . . . . . . . . . . . . . . . . Proto ID Catalog 1 | . . . 1 . . . . . . . . . . . . . . . . . . . . Protovariant Controls 2 | . . . . . . . . . . . . . . . . . . 2 . . . . . Activate Exoskeleton 1 | . . . . . . . . . . . . . . . . . . . . . 1 . . Release Object 2 | . . . . 2 . . . . . . . . . . . . . . . . . . . Fabricator Hacks 4 | . . . . . 4 . . . . . . . . . . . . . . . . . . Load Schematic 2 | . . . . . 2 . . . . . . . . . . . . . . . . . . Build 2 | . . . . . 2 . . . . . . . . . . . . . . . . . . Repair Station Hacks . | . . . . . . . . . . . . . . . . . . . . . . . . Recycling Unit Hacks 1 | . . . . . . . . . . . . . . . . . . . . . . . 1 Retrieve Components 1 | . . . . . . . . . . . . . . . . . . . . . . . 1 Scanalyzer 4 | . . . . . . . . . . . . . . . . . . 2 2 . . . . Insert Component 2 | . . . . . . . . . . . . . . . . . . 1 1 . . . . Analyze 2 | . . . . . . . . . . . . . . . . . . 1 1 . . . . Garrison Access Hacks 10 | . . . . . 1 . 1 . . 1 . . . . 1 . 1 . 3 1 1 . . Unlock Access 4 | . . . . . 1 . 1 . . 1 . . . . 1 . . . . . . . . Seal Access 6 | . . . . . . . . . . . . . . . . . 1 . 3 1 1 . . Unauthorized Hacks 18 | . . . . 6 1 . . . . 5 . . . . . . . 1 2 2 . . 1 Terminals 10 | . . . . 1 . . . . . 5 . . . . . . . 1 1 2 . . . Assimilate 1 | . . . . . . . . . . . . . . . . . . . . 1 . . . Botnet 7 | . . . . 1 . . . . . 4 . . . . . . . 1 . 1 . . . Disrupt 1 | . . . . . . . . . . . . . . . . . . . 1 . . . . Operators 1 | . . . . . . . . . . 1 . . . . . . . . . . . . . Fabricators . | . . . . . . . . . . . . . . . . . . . . . . . . Repair Stations 1 | . . . . . . . . . . . . . . . . . . . . . . . 1 Patch 1 | . . . . . . . . . . . . . . . . . . . . . . . 1 Recycling Units 6 | . . . . 5 . . . . . . . . . . . . . . 1 . . . . Monitor 1 | . . . . . . . . . . . . . . . . . . . 1 . . . . Tunnel 5 | . . . . 5 . . . . . . . . . . . . . . . . . . . Scanalyzers . | . . . . . . . . . . . . . . . . . . . . . . . . Garrison Access 1 | . . . . . 1 . . . . . . . . . . . . . . . . . . Jam 1 | . . . . . 1 . . . . . . . . . . . . . . . . . . Data Cores Recovered 3 | . . . . . . . . . 1 . . . . . . . . 1 . 1 . . . Used 3 | . . . . . . . . . 1 . . . . . . . . 1 . 1 . . . Hacking Detections 69 | . . . . 5 10 1 1 1 7 8 . . . . 1 3 1 7 7 10 3 3 1 Full Trace Events 15 | . . . . 4 4 . . 1 1 1 . . . . . 2 . 1 1 . . . . Feedback Events 1 | . . . . . . . . . . 1 . . . . . . . . . . . . . Corruption 1 | . . . . . . . . . . 1 . . . . . . . . . . . . . Feedback Blocked . | . . . . . . . . . . . . . . . . . . . . . . . . Robot Schematics Acquired 5 | . . . . . . . . . . . . . . . . . . . . 2 3 . . Robots Built . | . . . . . . . . . . . . . . . . . . . . . . . . Authchips . | . . . . . . . . . . . . . . . . . . . . . . . . Time . | . . . . . . . . . . . . . . . . . . . . . . . . Total Robot Build Rating . | . . . . . . . . . . . . . . . . . . . . . . . . Part Schematics Acquired 22 | . . . . 5 . . . . . . . . . . . . . 5 1 8 3 . . Parts Built 4 | . . . . . 4 . . . . . . . . . . . . . . . . . . Authchips 1 | . . . . . 1 . . . . . . . . . . . . . . . . . . Time 104 | . . . . . 104 . . . . . . . . . . . . . . . . . . Total Part Build Rating 10 | . . . . . 10 . . . . . . . . . . . . . . . . . . Parts Repaired . | . . . . . . . . . . . . . . . . . . . . . . . . Time . | . . . . . . . . . . . . . . . . . . . . . . . . Parts Recycled . | . . . . . . . . . . . . . . . . . . . . . . . . Recycled Matter . | . . . . . . . . . . . . . . . . . . . . . . . . Retrieved Matter . | . . . . . . . . . . . . . . . . . . . . . . . . Retrieved Components . | . . . . . . . . . . . . . . . . . . . . . . . . Parts Scanalyzed 2 | . . . . . . . . . . . . . . . . . . 1 1 . . . . Part Schematics Acquired 2 | . . . . . . . . . . . . . . . . . . 1 1 . . . . Parts Damaged . | . . . . . . . . . . . . . . . . . . . . . . . . Bothacking | -11 -10 -10 -10 -9 -7 -7 -7 -7 -6 -5 -5 -5 -5 -4 -4 -4 -3 -3 -2 -2 -2 -1 -1 ------------ Run | Yrd Mat Min Sub Rec Fac Gar Fac Gar Fac Fac Upp Upp War Pro Fac Gar Res Tes Res Qua Sec Acc Com Used RIF Installer 4 | . . . . . . 2 . 1 . . . . . . . 1 . . . . . . . Hotswap 1 | . . . . . . . . 1 . . . . . . . . . . . . . . . Code Merge 1 | . . . . . . . . . . . . . . . . 1 . . . . . . . Threat Obfuscator 1 | . . . . . . 1 . . . . . . . . . . . . . . . . . Robots Hacked 14 | . . . . . . . . . 2 . . . . . . . 3 9 . . . . . Non-combat 5 | . . . . . . . . . 2 . . . . . . . 3 . . . . . . Combat 9 | . . . . . . . . . . . . . . . . . . 9 . . . . . Robot Hacks Applied 24 | . . . . . . . . . 7 . . . . . . . 7 10 . . . . . no_distress 2 | . . . . . . . . . 1 . . . . . . . 1 . . . . . . start_evac 1 | . . . . . . . . . 1 . . . . . . . . . . . . . . map_walls 1 | . . . . . . . . . . . . . . . . . 1 . . . . . . find_fabricator 1 | . . . . . . . . . . . . . . . . . 1 . . . . . . find_dsf 1 | . . . . . . . . . . . . . . . . . 1 . . . . . . drop_inventory 1 | . . . . . . . . . . . . . . . . . 1 . . . . . . locate_stockpiles 1 | . . . . . . . . . . . . . . . . . 1 . . . . . . find_recycling 1 | . . . . . . . . . 1 . . . . . . . . . . . . . . ignore_parts 2 | . . . . . . . . . 2 . . . . . . . . . . . . . . mark_security 1 | . . . . . . . . . . . . . . . . . 1 . . . . . . find_shortcuts 2 | . . . . . . . . . . . . . . . . . . 2 . . . . . link_fov 1 | . . . . . . . . . 1 . . . . . . . . . . . . . . scatter_targeting 1 | . . . . . . . . . . . . . . . . . . 1 . . . . . disrupt_area 1 | . . . . . . . . . . . . . . . . . . 1 . . . . . amplify_resonance 1 | . . . . . . . . . . . . . . . . . . 1 . . . . . go_dormant 1 | . . . . . . . . . . . . . . . . . . 1 . . . . . overwrite_iff 2 | . . . . . . . . . . . . . . . . . . 2 . . . . . streamctrl_low 1 | . . . . . . . . . 1 . . . . . . . . . . . . . . formatsys_high 2 | . . . . . . . . . . . . . . . . . . 2 . . . . . Relay Couplers Released 27 | . . . . . . 5 . 3 . . . . . . . 18 . . . 1 . . . Machine Destruction 24 | . . . . . . 5 . . . . . . . . . 18 . . . 1 . . . Programmers 3 | . . . . . . . . 3 . . . . . . . . . . . . . . . Attached 3 | . . . . . . . . . 1 . . . . . . 2 . . . . . . . Merged Code Value 125 | . . . . . . . . . . . . . . . . 125 . . . . . . . Fabnet Peak Effective % . | . . . . . . . . . . . . . . . . . . . . . . . . Robots Rewired 8 | . . . . . . 3 . . . 2 1 . . . . 2 . . . . . . . Allies Hacked 1 | . . . . . . . . . . . . . . . . . . . . 1 . . . Hacks Repelled . | . . . . . . . . . . . . . . . . . . . . . . . . Allies | -11 -10 -10 -10 -9 -7 -7 -7 -7 -6 -5 -5 -5 -5 -4 -4 -4 -3 -3 -2 -2 -2 -1 -1 -------- Run | Yrd Mat Min Sub Rec Fac Gar Fac Gar Fac Fac Upp Upp War Pro Fac Gar Res Tes Res Qua Sec Acc Com Total Allies 17 | . . . . . . 5 . . 1 2 1 . . . . 2 . 4 . 1 1 . . Largest Group 3 | . . . . . . 3 3 3 1 2 2 2 2 1 . 2 . 2 . 1 1 . . Highest-Rated Group 1204 | . . . . . . 142 96 96 20 94 94 93 93 29 . 75 . 94 . 10 1204 . . Highest-Rated Ally 1204 | . . . . . . 80 32 32 20 64 64 64 64 29 . 46 . 47 . 10 1204 . . Total Orders 15 | . . . . . . . . . . 2 . . 3 . . . . . . . 10 . . STAY 2 | . . . . . . . . . . 1 . . 1 . . . . . . . . . . ROAM 4 | . . . . . . . . . . . . . 1 . . . . . . . 3 . . FOLLOW 3 | . . . . . . . . . . 1 . . 1 . . . . . . . 1 . . EXPLORE 5 | . . . . . . . . . . . . . . . . . . . . . 5 . . RETURN 1 | . . . . . . . . . . . . . . . . . . . . . 1 . . Ally Attacks 200 | . . . . . . 21 4 14 . . 1 7 4 9 . 2 . 11 . . 127 . . Total Damage 15359 | . . . . . . 683 133 438 . . 22 94 56 76 . 61 . 311 . . 13485 . . Kills 55 | . . . . . . 7 1 5 . . . 1 . 2 . . . 1 . . 38 . . Allies Corrupted 1 | . . . . . . . . . . . . . 1 . . . . . . . . . . Allies Melted . | . . . . . . . . . . . . . . . . . . . . . . . . Intel | -11 -10 -10 -10 -9 -7 -7 -7 -7 -6 -5 -5 -5 -5 -4 -4 -4 -3 -3 -2 -2 -2 -1 -1 ------- Run | Yrd Mat Min Sub Rec Fac Gar Fac Gar Fac Fac Upp Upp War Pro Fac Gar Res Tes Res Qua Sec Acc Com Active Infowar (turns) 8216 | . . . . . 645 . . . . 445 615 716 694 449 116 1 244 902 775 938 1118 264 294 Sensors 5772 | . . . . . . . . . . 445 615 716 694 449 116 1 244 902 756 831 . . 3 Jamming 3292 | . . . . . 645 . . . . . . . . . 55 . . . 195 779 1118 206 294 ECM 58 | . . . . . . . . . . . . . . . . . . . . . . 58 . Robot Analysis Total 2 | . . . . 2 . . . . . . . . . . . . . . . . . . . Derelict Logs Recovered 7 | . . 1 2 . . . . . . . . 2 . 2 . . . . . . . . . Drone Launches 10 | . . . . . . . . . . . . . . . . . . . . . 10 . . Drone Recoveries 2 | . . . . . . . . . . . . . . . . . . . . . 2 . . Exploration | -11 -10 -10 -10 -9 -7 -7 -7 -7 -6 -5 -5 -5 -5 -4 -4 -4 -3 -3 -2 -2 -2 -1 -1 ------------- Run | Yrd Mat Min Sub Rec Fac Gar Fac Gar Fac Fac Upp Upp War Pro Fac Gar Res Tes Res Qua Sec Acc Com Turns Passed 19520 | 15 212 100 2207 1643 1311 1494 163 867 1269 447 620 716 694 449 116 976 344 1041 775 1186 2100 470 305 Spaces Moved 14682 | 23 117 94 1201 660 1193 863 65 458 956 462 632 782 164 431 73 1126 410 1149 905 1070 1075 503 270 Core 1139 | 23 117 94 114 . 707 82 . . . . . . . . . . . . . . . . 2 Treads 3077 | . . . 170 . 31 206 . . 180 . . . . . . . . 773 905 163 451 52 146 Legs 4286 | . . . . 36 366 426 65 173 29 . . . . . 2 1126 410 376 . 831 446 . . Wheels 2087 | . . . 917 624 54 . . . 192 300 . . . . . . . . . . . . . Hover 2661 | . . . . . . . . . 245 162 632 782 164 431 71 . . . . 76 87 11 . Flight 1432 | . . . . . 35 149 . 285 310 . . . . . . . . . . . 91 440 122 Fastest Speed 41 | 50 50 50 50 98 50 50 79 47 46 46 82 82 78 78 46 46 46 59 59 53 41 41 50 Average Speed 84 | 50 50 50 157 167 80 92 79 59 54 70 82 82 78 81 93 46 47 60 59 84 120 58 101 Slowest Speed 213 | 50 50 50 210 210 166 145 79 79 116 82 82 82 82 82 118 46 66 66 59 124 213 161 102 Overloaded Moves 156 | . . . . . . . . . . . . . 149 7 . . . . . . . . . Propulsion Burnouts . | . . . . . . . . . . . . . . . . . . . . . . . . Robots Hopped 15 | . . . . . 6 . . 2 2 . . . . . . . . . . . 2 3 . Potential Cave-ins 12 | . . . . . . . . . . . . . . . . . . . . . 4 1 7 Cave-ins Triggered 2 | . . . . . . . . . . . . . . . . . . . . . 1 . 1 Teleports 1 | . . . . . . . . . . . . . . . . . . . . . 1 . . Exploration Rate (%) 42 | 3 25 26 66 84 37 64 2 47 23 11 73 86 13 58 3 91 12 76 31 96 72 15 16 Regions Visited 23 Branch Regions 11 Pre-discovered Areas 8 | . . 1 . 5 . . . . . . . 1 . 1 . . . . . . . . . Known Exits Taken 13 | . . . . . 1 . 1 . . 1 1 1 1 1 1 . 1 1 1 1 1 . . Unknown Exits Taken 7 | 1 1 1 1 1 . . . . 1 . . . . . . . . . . . . 1 . Scrap Searched 23 | . . 1 13 . . . . . . . 3 3 . 3 . . . . . . . . . Spaces Dug 262 | . . . 1 8 17 19 . 30 3 . 5 . 11 . 7 42 41 42 6 22 6 . 2 Terrain Destroyed 1032 | . . . 23 14 55 48 . 151 50 . 11 1 17 7 11 87 85 110 74 141 142 3 2 Melee 28 | . . . . . 6 19 . . 3 . . . . . . . . . . . . . . Projectile 539 | . . . 5 14 1 . . . . . 10 1 16 7 11 83 80 79 74 94 59 3 2 AOE 438 | . . . 18 . 48 29 . 151 47 . . . . . . . . 15 . 47 83 . . Terrain Rammed . | . . . . . . . . . . . . . . . . . . . . . . . . Walls Destroyed . | . . . . . . . . . . . . . . . . . . . . . . . . Machines Disabled . | . . . . . . . . . . . . . . . . . . . . . . . . Actions | -11 -10 -10 -10 -9 -7 -7 -7 -7 -6 -5 -5 -5 -5 -4 -4 -4 -3 -3 -2 -2 -2 -1 -1 --------- Run | Yrd Mat Min Sub Rec Fac Gar Fac Gar Fac Fac Upp Upp War Pro Fac Gar Res Tes Res Qua Sec Acc Com Total 20030 | 24 269 146 1400 1097 1410 1353 154 955 1566 572 708 840 706 504 104 1475 508 1385 1084 1272 1555 647 296 Wait 3121 | . 151 51 42 330 124 270 74 340 437 50 42 36 527 59 14 136 33 87 87 62 121 47 1 Move 14631 | 22 116 93 1200 659 1181 862 65 453 951 461 631 781 163 430 72 1125 409 1148 904 1069 1071 496 269 Hop 14 | . . . . . 6 . . 2 2 . . . . . . . . . . . 1 3 . Pick Up 208 | . 2 2 52 15 7 22 1 4 12 4 1 2 . . 1 11 5 9 12 13 13 19 1 Fast Attach 120 | 2 . . 5 . 8 1 . . 11 1 2 . . . . 1 1 13 8 12 35 13 7 Attach 71 | . . . 5 5 2 1 . 4 5 2 . . . . 2 . 4 2 1 4 17 10 7 Detach 38 | . . . . . 1 1 . 3 3 . . . . . . 1 . 3 1 3 15 6 1 Swap 96 | . . . 13 9 3 1 . . 2 . . . . . . 7 4 8 5 18 22 4 . Drop 230 | . . . 17 19 8 14 1 3 19 3 3 3 . . . 14 5 24 13 25 35 18 6 Fire 1239 | . . . 66 60 53 68 13 108 116 11 24 18 16 15 15 155 46 89 49 65 219 31 2 Melee 101 | . . . . . 17 79 . . 5 . . . . . . . . . . . . . . Ram 7 | . . . . . . . . 7 . . . . . . . . . . . . . . . Kick 32 | . . . . . . . . 28 . . . . . . . . 1 2 . 1 . . . Crush 10 | . . . . . . . . . 3 . . . . . . . . . 4 . 2 . 1 Escape Stasis 6 | . . . . . . 1 . . . . . . . . . 4 . . . . . . 1 Rewire 89 | . . . . . . 23 . 1 . 40 5 . . . . 20 . . . . . . . Trap 13 | . . . . . . 10 . 2 . . . . . . . 1 . . . . . . . Miscellaneous 4 | . . . . . . . . . . . . . . . . . . . . . 4 . . Route ------- -11/Scrapyard -10/Materials -10/Mines -10/Subcaves (discovered 3 exits: [*Mat x2] / *Rec) -9/Recycling -7/Factory -7/Garrison (discovered 2 exits: *Fac x2) -7/Factory -7/Garrison -6/Factory (discovered 3 exits: *Fac / *Low x2) -5/Factory (discovered 6 exits: *Fac x4 / *Upp / Gar) -5/Upper Caves -5/Upper Caves (discovered 2 exits: *Fac / *War) -5/Warlord -4/Proximity Caves -4/Factory -4/Garrison (discovered 3 exits: *Res x3) -3/Research -3/Testing -2/Research (discovered 2 exits: *Qua x2) -2/Quarantine (discovered 3 exits: *Acc / *Sec / *Frg) -2/Section 7 -1/Access -1/Command (discovered 1 exit: [*Sur]) History --------- Turn | Location | Event 3 | -11/Scrapyard | Discovered new exit (range 16) 16 | -11/Scrapyard | Entered Materials 214 | -10/Materials | Discovered new exit (range 12) 228 | -10/Materials | Entered Mines 231 | -10/Mines | Learned location of Storage (-9) 269 | -10/Mines | A weapon hastily lodged in a ceiling crevice suddenly fell to the ground 314 | -10/Mines | Build established: Mutant 316 | -10/Mines | Discovered new exit (range 4) 328 | -10/Mines | Entered Subcaves 329 | -10/Subcaves | Approached by a straggling Scientist 420 | -10/Subcaves | Disturbed a concealed Subdweller 521 | -10/Subcaves | Discovered new exit (range 13) 707 | -10/Subcaves | Visited 4L-MR0's lab 726 | -10/Subcaves | Found Power Bank 1235 | -10/Subcaves | Build established: Hauler-Mutant 1658 | -10/Subcaves | Learned Materials emergency access door positions 2036 | -10/Subcaves | Learned Materials emergency access door positions 2094 | -10/Subcaves | Disturbed a concealed Subdweller 2316 | -10/Subcaves | A swath of the cavern ceiling suddenly collapsed 2364 | -10/Subcaves | Discovered new exit (range 6) 2455 | -10/Subcaves | Discovered new exit (range 15) 2535 | -10/Subcaves | Entered Recycling 3217 | -9/Recycling | Discovered new exit (range 16) 3424 | -9/Recycling | Scanned before Scraplab entrance 3447 | -9/Recycling | Angered Scraplab inhabitants 3589 | -9/Recycling | Lost 4 parts (1n3w) 3863 | -9/Recycling | Found Prototype Device 3874 | -9/Recycling | Identified Scrap Engine 3904 | -9/Recycling | Lost 8 parts (2p2n2u2w) 4178 | -9/Recycling | Entered Factory 4178 | -7/Factory | Evolved 6 slots: Propulsion x4, Utility x1, Weapon x1 4282 | -7/Factory | Build established: Construct 4495 | -7/Factory | Fabricated Cesium-ion Thruster (x2) 4899 | -7/Factory | Fabricated Arm. Wheel (x2) 4950 | -7/Factory | Cargo convoy interrupted 4990 | -7/Factory | Lost 3 parts (1p2w) 5054 | -7/Factory | Lost 3 parts (1n1u1w) 5054 | -7/Factory | Core integrity fell below 50% 5489 | -7/Factory | Identified exit to Garrison 5489 | -7/Factory | Entered Garrison 5681 | -7/Garrison | Triggered checkpoint 5770 | -7/Garrison | Garrison Relay disabled 5819 | -7/Garrison | Found embedded Infiltrators 6029 | -7/Garrison | Triggered checkpoint 6166 | -7/Garrison | Learned Factory security intel 6185 | -7/Garrison | Discovered new exit (range 11) 6349 | -7/Garrison | Triggered checkpoint 6628 | -7/Garrison | Discovered new exit (range 10) 6681 | -7/Garrison | Triggered checkpoint 6749 | -7/Garrison | Triggered checkpoint 6829 | -7/Garrison | Installed Relay Interface Framework 6935 | -7/Garrison | Expanded RIF knowledge: Threat Obfuscation 6983 | -7/Garrison | Entered Factory 6983 | -7/Factory | Accompanied by 3 allies 7079 | -7/Factory | Identified exit to Garrison 7146 | -7/Factory | Entered Garrison 7146 | -7/Garrison | Accompanied by 3 allies 7154 | -7/Garrison | Expanded RIF knowledge: Hotswap 7210 | -7/Garrison | Triggered checkpoint 7334 | -7/Garrison | Triggered checkpoint 7346 | -7/Garrison | Core integrity fell below 20% 7388 | -7/Garrison | Triggered checkpoint 7410 | -7/Garrison | System corruption reached 10% 7442 | -7/Garrison | Destroyed 7 combat bots 7696 | -7/Garrison | Discovered new exit (range 10) 8013 | -7/Garrison | Entered Factory 8013 | -6/Factory | Evolved 2 slots: Power x1, Utility x1 8335 | -6/Factory | Identified exit to Lower Caves 8713 | -6/Factory | First assault squad dispatched 9175 | -6/Factory | Discovered new exit (range 12) 9282 | -6/Factory | Entered another Factory area 9282 | -5/Factory | Evolved 2 slots: Utility x2 9368 | -5/Factory | Discovered new exit (range 12) 9451 | -5/Factory | Identified exit to Factory 9665 | -5/Factory | Identified exit to Garrison 9672 | -5/Factory | Discovered new exit (range 15) 9679 | -5/Factory | Identified exit to Upper Caves 9729 | -5/Factory | Entered Upper Caves 9729 | -5/Upper Caves | Accompanied by 2 allies 10086 | -5/Upper Caves | Attracted the attention of an 0b10 outpost 10304 | -5/Upper Caves | Discovered new exit (range 15) 10316 | -5/Upper Caves | Identified exit to Upper Caves 10349 | -5/Upper Caves | Entered another Upper Caves area 10349 | -5/Upper Caves | Accompanied by 2 allies 10376 | -5/Upper Caves | Discovered exit to Factory (range 6) 10455 | -5/Upper Caves | Learned location of Armory (-3) 10556 | -5/Upper Caves | Attracted the attention of an 0b10 checkpoint 10820 | -5/Upper Caves | Learned 4 Factory zone layouts 10980 | -5/Upper Caves | Acquired the password to a Derelict Tinkerer's latest research 11004 | -5/Upper Caves | Found Prototype Special Weapon 11033 | -5/Upper Caves | Discovered new exit (range 16) 11045 | -5/Upper Caves | Identified exit to Warlord 11065 | -5/Upper Caves | Entered Warlord 11065 | -5/Warlord | Accompanied by 2 allies 11120 | -5/Warlord | Discovered new exit (range 15) 11137 | -5/Warlord | Warlord's base attacked by MAIN.C 11154 | -5/Warlord | Identified exit to Proximity Caves 11487 | -5/Warlord | Warlord forces counterattacked 11651 | -5/Warlord | Lost 9 allies 11703 | -5/Warlord | Lost 16 allies 11746 | -5/Warlord | Spotted Executioner 11759 | -5/Warlord | Entered Proximity Caves 11759 | -4/Proximity Caves | Accompanied by 1 ally 11777 | -4/Proximity Caves | Spotter reported a threat 11825 | -4/Proximity Caves | Learned 4 Research zone layouts 11935 | -4/Proximity Caves | Spotter reported a threat 12101 | -4/Proximity Caves | Discovered exit to Factory (range 8) 12208 | -4/Proximity Caves | Entered Factory 12208 | -4/Factory | Evolved 2 slots: Utility x1, Weapon x1 12238 | -4/Factory | Identified exit to Garrison 12295 | -4/Factory | Garrison activated, responded to threat 12324 | -4/Factory | Entered Garrison 12416 | -4/Garrison | Garrison Relay disabled 12454 | -4/Garrison | Triggered checkpoint 12471 | -4/Garrison | Garrison Relay disabled 12483 | -4/Garrison | Garrison Relay disabled 12555 | -4/Garrison | Spotted B-86 Titan 12556 | -4/Garrison | Triggered checkpoint 12559 | -4/Garrison | Triggered checkpoint 12635 | -4/Garrison | Destroyed B-86 Titan 12732 | -4/Garrison | Triggered checkpoint 12813 | -4/Garrison | Discovered new exit (range 12) 12827 | -4/Garrison | Identified exit to Research 12848 | -4/Garrison | Garrison Relay disabled 12998 | -4/Garrison | Discovered exit to Research (range 6) 13012 | -4/Garrison | Triggered checkpoint 13025 | -4/Garrison | Expanded RIF knowledge: Code Merge 13030 | -4/Garrison | Garrison Relay disabled 13077 | -4/Garrison | Discovered exit to Research (range 9) 13083 | -4/Garrison | Discovered exit to Research (range 6) 13083 | -4/Garrison | Discovered exit to Research (range 87) 13083 | -4/Garrison | Discovered exit to Research (range 49) 13300 | -4/Garrison | Entered Research 13300 | -3/Research | Evolved 2 slots: Utility x1, Weapon x1 13301 | -3/Research | Identified exit to Testing 13577 | -3/Research | Destroyed 9 combat bots 13644 | -3/Research | Entered Testing 13721 | -3/Testing | Spotted PD-APASQESJR9 13758 | -3/Testing | Protovariant out of control (PD-APASQESJR9) 13758 | -3/Testing | Unleashed a protovariant (PD-APASQESJR9) 13933 | -3/Testing | Found Prototype Device 13933 | -3/Testing | Identified Imp. Particle Accelerator 13969 | -3/Testing | Discovered new exit (range 7) 13975 | -3/Testing | Identified exit to Research 14092 | -3/Testing | Found Prototype Processor 14092 | -3/Testing | Identified Spectral Analyzer 14274 | -3/Testing | Found Heavy Servo Lattice 14296 | -3/Testing | Found Prototype Device 14296 | -3/Testing | Identified AEGIS Remote Shield 14375 | -3/Testing | Scanned by Researcher 14397 | -3/Testing | Found Prototype Protection 14685 | -3/Testing | Entered Research 14685 | -2/Research | Evolved 2 slots: Power x1, Utility x1 14691 | -2/Research | Identified exit to Quarantine 14935 | -2/Research | First assault squad dispatched 15230 | -2/Research | Destroyed 7 combat bots 15438 | -2/Research | Spotted B-90 Cyclops 15442 | -2/Research | Destroyed B-90 Cyclops 15460 | -2/Research | Entered Quarantine 15481 | -2/Quarantine | Found Alien Artifact 15676 | -2/Quarantine | Found Prototype Launcher 15676 | -2/Quarantine | Identified Com. Tesla Bomb Launcher 15758 | -2/Quarantine | Met incapacitated Sigix Warrior 15758 | -2/Quarantine | Lockdown squad dispatched 15761 | -2/Quarantine | Acquired the access code to the Sigix quarantine chamber 15762 | -2/Quarantine | Unlocked Sigix quarantine chamber 15766 | -2/Quarantine | Found Sigix Containment Pod 15818 | -2/Quarantine | Spotted Lightning 15822 | -2/Quarantine | Spotted Lightning 15825 | -2/Quarantine | Spotted Lightning 15948 | -2/Quarantine | Destroyed Lightning 15963 | -2/Quarantine | Destroyed Lightning 15977 | -2/Quarantine | Destroyed Lightning 15983 | -2/Quarantine | Found Prototype Device 15983 | -2/Quarantine | Identified Exp. EM Shield 15987 | -2/Quarantine | Found Exp. EM Shield 16004 | -2/Quarantine | Found Prototype Processor 16004 | -2/Quarantine | Identified Exp. Targeting Computer 16033 | -2/Quarantine | Found Alien Artifact 16039 | -2/Quarantine | Found Alien Artifact 16045 | -2/Quarantine | Found Alien Artifact 16087 | -2/Quarantine | Cryocooling Duct disabled 16093 | -2/Quarantine | System corruption reached 10% 16102 | -2/Quarantine | Ambient heat levels rising (+20) 16102 | -2/Quarantine | Non-combat units ordered to evacuate 16180 | -2/Quarantine | Found Exp. Targeting Computer 16210 | -2/Quarantine | First assault squad dispatched 16378 | -2/Quarantine | Discovered new exit (range 13) 16397 | -2/Quarantine | Identified exit to Access 16436 | -2/Quarantine | Found Alien Artifact 16470 | -2/Quarantine | Found Alien Reactor 16501 | -2/Quarantine | Spotted Fortress 16552 | -2/Quarantine | Destroyed Fortress 16560 | -2/Quarantine | Found Prototype Device 16560 | -2/Quarantine | Identified Thermal Barrier 16634 | -2/Quarantine | Discovered new exit (range 5) 16634 | -2/Quarantine | Discovered new exit (range 6) 16637 | -2/Quarantine | Identified exit to Section 7 16640 | -2/Quarantine | Identified exit to Protoforge 16646 | -2/Quarantine | Entered Section 7 16710 | -2/Section 7 | Spotted S7 Guard 16718 | -2/Section 7 | Spotted B-90 Cyclops 16776 | -2/Section 7 | Destroyed S7 Guard 16916 | -2/Section 7 | Found Alien Artifact 16916 | -2/Section 7 | Identified Core Physics Calibrator 17070 | -2/Section 7 | Destroyed B-90 Cyclops 17131 | -2/Section 7 | Identified Core Reset Matrix 17131 | -2/Section 7 | Identified Subatomic Replicator 17131 | -2/Section 7 | Identified Transdimensional Reconstructor (x2) 17131 | -2/Section 7 | Identified Dimensional Node Initializer 17131 | -2/Section 7 | Identified Matter Drive 17131 | -2/Section 7 | Used Core Reset Matrix 17135 | -2/Section 7 | Detected hypermatrix surge 17135 | -2/Section 7 | Sensed 17 artifacts in vicinity 17135 | -2/Section 7 | Destroyed 7 combat bots 17137 | -2/Section 7 | Found Integrated Reactor 17137 | -2/Section 7 | Installed Integrated Reactor, increased core energy generation (+10) 17146 | -2/Section 7 | First assault squad dispatched 17246 | -2/Section 7 | Destroyed 11 combat bots 17272 | -2/Section 7 | Found Integrity Redistributor 17272 | -2/Section 7 | Used Integrity Redistributor, redistributed integrity from core (-245) 17405 | -2/Section 7 | Spotted S7 Guard 17423 | -2/Section 7 | Destroyed S7 Guard 17428 | -2/Section 7 | Build established: Alien-Construct 17470 | -2/Section 7 | Found Core Regenerator 17519 | -2/Section 7 | Discovered exit to Access (range 5) 17574 | -2/Section 7 | Initialized slip node 17699 | -2/Section 7 | Spotted Alpha 7 17705 | -2/Section 7 | Spotted Alpha 7 17754 | -2/Section 7 | Destroyed Alpha 7 17762 | -2/Section 7 | Destroyed Alpha 7 17820 | -2/Section 7 | Found Prototype Device 17820 | -2/Section 7 | Identified Exp. ECM Suite 17864 | -2/Section 7 | Spotted B-99 Colossus 18000 | -2/Section 7 | Activated Sigix Exoskeleton 18000 | -2/Section 7 | Received instructions from Sigix Warrior 18025 | -2/Section 7 | Allies destroyed B-99 Colossus 18059 | -2/Section 7 | Spotted Executioner 18079 | -2/Section 7 | Destroyed Executioner 18104 | -2/Section 7 | Found Prototype Processor 18104 | -2/Section 7 | Identified Exp. Core Analyzer 18188 | -2/Section 7 | Destroyed 16 combat bots 18208 | -2/Section 7 | Spotted Striker 18208 | -2/Section 7 | Spotted Striker 18211 | -2/Section 7 | Sigix Exoskeleton integrity reduced to 80% 18212 | -2/Section 7 | Identified Molecular Deconstructor 18222 | -2/Section 7 | Destroyed Striker 18225 | -2/Section 7 | Allies destroyed Striker 18267 | -2/Section 7 | Found Sigix Sheargun 18270 | -2/Section 7 | Found Sigix Sheargun 18273 | -2/Section 7 | Spotted Investigator 18282 | -2/Section 7 | Sigix Exoskeleton integrity reduced to 60% 18282 | -2/Section 7 | Destroyed Investigator 18324 | -2/Section 7 | Destroyed 11 combat bots 18382 | -2/Section 7 | Found Matter Drive 18395 | -2/Section 7 | Found Drained L-Cannon 18424 | -2/Section 7 | Found Terrabomb 18576 | -2/Section 7 | Found LRC Insulator 18576 | -2/Section 7 | Installed LRC Insulator, 1 resistance modified: EM +25% 18580 | -2/Section 7 | Found LRC Matter Compressor 18580 | -2/Section 7 | Installed LRC Matter Compressor, increased matter storage capacity (+125) 18617 | -2/Section 7 | Sigix Exoskeleton integrity reduced to 40% 18619 | -2/Section 7 | Spotted Striker 18622 | -2/Section 7 | Spotted Executioner 18629 | -2/Section 7 | Allies destroyed Striker 18642 | -2/Section 7 | Allies destroyed Executioner 18659 | -2/Section 7 | Spotted Executioner 18659 | -2/Section 7 | Spotted Executioner 18662 | -2/Section 7 | Door terminal overloaded 18678 | -2/Section 7 | Warped through subspace to slip node 18694 | -2/Section 7 | Sigix Exoskeleton integrity reduced to 20% 18720 | -2/Section 7 | Core integrity fell below 50% 18720 | -2/Section 7 | Spotted Striker 18720 | -2/Section 7 | Spotted Executioner 18720 | -2/Section 7 | Spotted Striker 18720 | -2/Section 7 | Spotted Executioner 18721 | -2/Section 7 | Spotted Executioner 18730 | -2/Section 7 | Sterilization system engaged 18730 | -2/Section 7 | Non-combat units ordered to evacuate 18734 | -2/Section 7 | Destroyed Striker 18737 | -2/Section 7 | Destroyed Striker 18738 | -2/Section 7 | Destroyed Executioner 18740 | -2/Section 7 | Spotted Striker 18741 | -2/Section 7 | Crushed by falling debris 18746 | -2/Section 7 | Entered Access 18746 | -1/Access | Evolved 2 slots (calibrated): Power x7, -Utility x4, -Weapon x1 18747 | -1/Access | Sensed 5 artifacts in vicinity 18759 | -1/Access | Destroyed 12 combat bots 18772 | -1/Access | Lost 4 parts (2p1u1w) 18996 | -1/Access | First assault squad dispatched 19009 | -1/Access | Lost 4 parts (1p2u1w) 19058 | -1/Access | Build established: Alien-Mutant 19166 | -1/Access | Discovered new exit (range 8) 19216 | -1/Access | Entered Command 19259 | -1/Command | Used Core Regenerator, restored core integrity (+256) 19466 | -1/Command | First assault squad dispatched 19485 | -1/Command | Spotted Executioner 19485 | -1/Command | Spotted Executioner 19485 | -1/Command | Spotted Striker 19485 | -1/Command | Spotted Alpha 7 19485 | -1/Command | Spotted Executioner 19485 | -1/Command | Spotted Executioner 19485 | -1/Command | Spotted Striker 19485 | -1/Command | Spotted Alpha 7 19487 | -1/Command | Failed to warp due to unstable space 19499 | -1/Command | Used Terrabomb 19499 | -1/Command | Spotted B-99 Colossus 19503 | -1/Command | Spotted B-99 Colossus 19514 | -1/Command | Crushed by falling debris 19516 | -1/Command | Discovered new exit (range 8) 19517 | -1/Command | Core integrity fell below 50% 19519 | -1/Command | Emitted hypermatrix ping 19519 | -1/Command | Released all parts (1) 19520 | -1/Command | Core integrity fell below 20% 19521 | -1/Command | Destroyed by G-73 Enforcer with Phase Gun Last Messages --------------- 19519_ Emitted hypermatrix ping. 19519_ Released Lrg. Storage Unit. 19519_ Triggered Stasis Trap. 19519_ A bubble of rippling energy engulfs the area. 19519_ Field strength at 94. 19519_ Slug penetrates Alpha 7. 19519_ Penetrated by Slug. 19519_ Slug penetrates Wall. 19520_ Penetrated by Slug. 19520_ Stasis field depleted. 19520_ Slug penetrates Wall. 19520_ Penetrated by Slug. 19521_ Enh. Nova Cannon destroyed. 19521_ Knocked back. 19521_ Striker knocked back. 19521_ Slug penetrates Wall. 19521_ Slug penetrates Reinforced Barrier. [Achievement: 50k Club] [Achievement: Rambo] Map ----- +----------------------------------------------------+ | ?????????????????????????????????????????????????? | | ?????????????????????????????????????????????????? | | ?????????????????????????????????????????????????? | | ?????????????????????????????????????????????????? | | ?????????????????????????????????????????????????? | | ?????????????????????????????????????????????????? | | ?????????????????????????????????????????????????? | | ?????????????????????????????????????????????????? | | ?????????????????????????????????????????????????? | | ?????????????????????????????????????????????????? | | ?????????????????????????????????????????????????? | | ?????????????????????????????????????????????????? | | ?????????????????????????????????????????????????? | | ?????????????????????????????????????????????????? | | ?????????????????????????????????????????????????? | | ?????????????????????????????????????????????????? | | ????????????????????##############???????????????? | | ????????????????????# #???????????????? | | ????????????????????# #???????????????? | | ????????????????????# #???????????????? | | ???????????#######??# #???????????????? | | ???????????#= ### #???????????????? | | ???????????# ;;; <" #???????????????? | | ????????? # ;;; "" #???????????????? | | ????????? w; | ;;; ##??????????????? | | ????????? ; ;;; ^%@ ;##?????????????? | | ????????" ; ;;; ^ ! ;;##????????????? | | ????????" ; g ;;; BBK!!! BB;; ##???????????? | | ??????? " + g g ;;; BB =! BB;; #???????????? | | ??????? " ; ;;;;;;%%^ ;;;;; #??????????? | | ??????? " " ;;;;# ^^ ^ ;;;; #??????????? | | ??????? " " ; ;;;^ ^ ^;;; #?????????? | | ???????"" + [ ; "%! ^ ;; #?????????? | | ??????? " " ; ;;!/7^ ;;; ?????????? | | ??????? " " ; ;%EE ;; ?????????? | | ??????? " """;;;;; ;;= %^ ;;; ??????????? | | ??????? " " ;;%7Eg ;; ??????????? | | ??????? """" " %;;^gEg^ ;;; ???????????? | | ?????? " " ;;; ^^ ^ ;;; ???????????? | | ?????? " " ;;%;////;""" ?##########? | | ?????? """+"""""""%""%;g """""""""## #? | | ?????? " " "" # #? | | ?????? " * " %"" # #? | | ?????? " !% % " % "" # #? | | ??????? " ] " % "" # #? | | ??????? " " "" # #? | | ???????? " " """""""+#+# #? | | ????????""""""""""+"""""" # #? | | ???????? # #? | | ????????? ? + #? | +----------------------------------------------------+ Best States ------------- Heat Dissipation 137 Energy Generation 112 Energy Capacity 1098 Matter Stores 415 Matter Capacity 575 Sight Range 16 Robot Scan Range 16 Terrain Scan Density 10 ECM Strength 2 Jamming Range 16 Power Amplification 80 Base Temperature (-) 150 EM Shielding 3 Armor Coverage 150 Resistance: TH 50 Resistance: EM 100 Weapon Cycling 25 Evasion (%) 65 Targeting Accuracy 12 Core Analysis 8 Recoil Reduction 6 Matter Filtering 50 Energy Filtering 30 Particle Charging 30 Offensive Hacking 12 Relay Coupler Types 2 Relay Coupler Value 198 Authchip Count 3 Item Schematics ----------------- Exp. Focal Shield | -2/Section 7 | Archive Spectral Analyzer | -2/Section 7 | Archive Robot Schematics ------------------ T-07 Excavator | -2/Section 7 | Archive R-10 Processor | -2/Section 7 | Archive Fabricated ------------ Cesium-ion Thruster | x2 | -7/Factory | Authchip Arm. Wheel | x2 | -7/Factory Repaired ---------- Nothing Alien Tech Used ----------------- Core Physics Calibrator Core Reset Matrix Integrated Reactor Integrity Redistributor Dimensional Node Initializer Sigix Sheargun Matter Drive LRC Insulator LRC Matter Compressor Transdimensional Reconstructor Core Regenerator Terrabomb Drained L-Cannon Achievements -------------- 50k Club Deconstruction Equal Opportunity Bot Just Shoot The Terminal Rambo Superinsulated Challenges ------------ None Game ------ Seed DisruptionSchematicRailgun Manual? 0 Play Time 06:15:13 Cumulative 204.7 hours Start 2025.05.25 @ 22:32:49 End 2025.05.26 @ 19:43:43 Sessions 3 Manual Loads 0 Difficulty Rogue Special Mode None Game No. 219 Rogue 219 Adventurer 0 Explorer 0 Win Type - Total 1 Types 1/0/0/0/0/0/0/0/0/0 Lore% 73 Gallery% 72 Achievement% 64 Wizard Run 0 Options --------- Layout 1 ASCII 0 Keyboard 0 Movement Numpad Keybinds 0 Fullscreen 1 Font 24/Smallcaps Map View 50x35 Zoom Use 0% Tactical HUD 1 Map Filters NONE Filters NONE Steam 1 RUN: 77a496b9-f8d7-4841-90d5-d6189cf1f46b